[Event "FIDE WYCC Girls U14 2023"]
[Site "Montesilvano"]
[Date "2023.11.21"]
[Round "8.25"]
[White "Toth, Lili"]
[Black "Wojs, Alicja"]
[Result "1/2-1/2"]
[ECO "D11"]
[WhiteElo "2199"]
[BlackElo "1630"]
[Annotator "RC"]
[PlyCount "89"]
[EventDate "2023.11.13"]
[EventType "swiss"]
[EventCountry "ITA"]
[SourceTitle "playchess.com"]
[Source "ChessBase"]
[SourceQuality "1"]
[TimeControl "40/5400+30:1800+30"]

1. d4 {[%emt 0:00:05]} d5 {[%emt 0:00:10]} 2. c4 {[%emt 0:00:06]} c6 {[%emt 0:00:03]} 3. Nf3 {[%emt 0:00:05]} Nf6 {[%emt 0:00:05]} 4. e3 {[%emt 0:00:18]} e6 {[%emt 0:00:07]} 5. Bd3 {[%emt 0:00:09]} Nbd7 {[%emt 0:00:07]} 6. O-O {[%emt 0:00:33]} Be7 {[%emt 0:00:11]} 7. Nc3 {[%emt 0:00:14]} O-O {[%emt 0:00:06]} 8. e4 {[%emt 0:02:18]} dxe4 {[%emt 0:01:29]} 9. Nxe4 {[%emt 0:00:03]} Nxe4 {[%emt 0:00:08]} 10. Bxe4 {[%emt 0:00:08]} Nf6 {[%emt 0:00:12]} 11. Bc2 {[%emt 0:00:08]} c5 {[%emt 0:03:04]} 12. Bg5 {[%emt 0:11:53]} cxd4 {[%emt 0:06:33]} 13. Qd3 {[%emt 0:02:32]} g6 {[%emt 0:00:11]} 14. Bh6 {[%emt 0:02:18]} Re8 {[%emt 0:00:13]} 15. Ne5 {[%emt 0:06:17]} Nd7 {[%emt 0:11:12]} 16. f4 {[%emt 0:17:05]} Bf6 {[%emt 0:12:52]} 17. Qg3 {[%emt 0:13:46]} Bg7 {[%emt 0:19:19]} 18. Bxg7 {[%emt 0:04:07]} Kxg7 {[%emt 0:00:29]} 19. Ba4 {[%emt 0:05:14]} Qe7 {[%emt 0:01:32]} 20. Rad1 {[%emt 0:02:11]} Rd8 {[%emt 0:02:04]} 21. Rxd4 {[%emt 0:03:25]} Nxe5 {[%emt 0:09:25]} 22. Rxd8 {[%emt 0:01:22]} Qxd8 {[%emt 0:02:08]} 23. fxe5 {[%emt 0:00:01]} Bd7 {[%emt 0:00:20]} 24. Bxd7 {[%emt 0:02:11]} Qxd7 {[%emt 0:00:01]} 25. Qf2 {[%emt 0:03:11]} Rc8 {[%emt 0:01:43]} 26. b3 {[%emt 0:05:16]} b6 {[%emt 0:00:15]} 27. h4 {[%emt 0:00:25]} h5 {[%emt 0:03:31]} 28. Qf6+ {[%emt 0:09:09]} Kg8 {[%emt 0:02:14]} 29. Qf3 {[%emt 0:00:49]} Rc7 {[%emt 0:00:19]} 30. Rd1 {[%emt 0:00:15]} Qe7 {[%emt 0:03:03]} 31. Qf6 {[%emt 0:05:01]} Rd7 {[%emt 0:01:03]} 32. Qxe7 {[%emt 0:00:34]} Rxe7 {[%emt 0:01:23]} 33. Rd8+ {[%emt 0:00:06]} Kg7 {[%emt 0:00:05]} 34. Kf2 {[%emt 0:00:14]} f6 {[%emt 0:00:05]} 35. exf6+ {[%emt 0:00:45]} Kxf6 {[%emt 0:00:27]} 36. Ke3 {[%emt 0:01:23]} Ke5 {[%emt 0:03:56]} 37. Rg8 {[%emt 0:01:51]} Kf5 {[%emt 0:00:33]} 38. b4 {[%emt 0:00:58]} Rc7 {[%emt 0:00:05]} 39. Kd4 {[%emt 0:02:25]} Rd7+ {[%emt 0:00:08]} 40. Kc3 {[%emt 0:00:00]} Rc7 {[%emt 0:00:00]} 41. a4 {[%emt 0:01:35]} e5 {[%emt 0:01:26]} 42. a5 {[%emt 0:10:20]} bxa5 {[%emt 0:05:40]} 43. bxa5 {[%emt 0:00:02]} e4 {[%emt 0:00:13]} 44. Re8 {[%emt 0:00:39]} Rc6 {[%emt 0:01:06]} 45. Rf8+ {[%emt 0:06:07]} 1/2-1/2

[Event "FIDE WYCC Girls U14 2023"]
[Site "Montesilvano"]
[Date "2023.11.21"]
[Round "8.26"]
[White "Stoll, Lucia"]
[Black "Chasouraki, Chrysi"]
[Result "1-0"]
[ECO "B48"]
[WhiteElo "1887"]
[BlackElo "1559"]
[Annotator "NA RC"]
[PlyCount "67"]
[EventDate "2023.11.13"]
[EventType "swiss"]
[EventCountry "ITA"]
[SourceTitle "playchess.com"]
[Source "ChessBase"]
[SourceQuality "1"]
[TimeControl "40/5400+30:1800+30"]

1. e4 {[%emt 0:00:01]} c5 {[%emt 0:00:58]} 2. Nf3 {[%emt 0:00:07]} e6 {[%emt 0:00:25]} 3. d4 {[%emt 0:00:05]} cxd4 {[%emt 0:00:03]} 4. Nxd4 {[%emt 0:00:05]} Nc6 {[%emt 0:00:04]} 5. Nc3 {[%emt 0:00:05]} Qc7 {[%emt 0:00:04]} 6. Be3 {[%emt 0:00:15]} a6 {[%emt 0:00:07]} 7. g4 {[%emt 0:00:05]} b5 {[%emt 0:05:03]} 8. Nxc6 {[%emt 0:00:23]} Qxc6 {[%emt 0:01:27]} 9. Qd2 {[%emt 0:00:40]} Nf6 {[%emt 0:01:54]} 10. f3 {[%emt 0:02:00]} h6 {[%emt 0:00:29]} 11. O-O-O {[%emt 0:08:29]} Bb7 {[%emt 0:02:07]} 12. h4 {[%emt 0:05:41]} Rc8 {[%emt 0:12:36]} 13. Rg1 {[%emt 0:07:41]} b4 {[%emt 0:11:16]} 14. Ne2 {[%emt 0:00:54]} d5 {[%emt 0:00:25]} 15. e5 {[%emt 0:02:25]} Nd7 {[%emt 0:00:18]} 16. f4 {[%emt 0:01:42]} Nc5 {[%emt 0:10:04]} 17. Nd4 {[%emt 0:06:07]} Qa4 {[%emt 0:02:02]} 18. Kb1 {[%emt 0:00:32]} Ne4 {[%emt 0:01:17]} 19. Qd3 {[%emt 0:16:18]} Bc5 {[%emt 0:22:36]} 20. f5 {[%emt 0:07:57]} Qd7 {[%emt 0:09:30]} 21. Nb3 {[%emt 0:13:01]} Be7 {[%emt 0:05:12]} 22. Bg2 {[%emt 0:09:33]} exf5 {[%emt 0:03:39]} 23. gxf5 Qxf5 {[%emt 0:00:17]} 24. Bd4 {[%emt 0:03:18]} Qh5 {[%emt 0:05:56]} 25. Na5 {[%emt 0:07:30]} Ba8 {[%emt 0:01:09]} 26. Bh3 {[%emt 0:01:34]} Rb8 {[%emt 0:01:46]} 27. Rxg7 {[%emt 0:00:39]} Qxh4 {[%emt 0:01:20]} 28. e6 {[%emt 0:01:48]} fxe6 {[%emt 0:01:45]} 29. Rg4 {[%emt 0:02:57]} Qh5 {[%emt 0:00:36]} 30. Bxh8 {[%emt 0:01:03]} Nf2 {[%emt 0:00:23]} 31. Qg3 {[%emt 0:00:39]} Nxg4 {[%emt 0:00:37]} 32. Bxg4 {[%emt 0:00:18]} Qg5 {[%emt 0:00:29]} 33. Qxb8+ {[%emt 0:00:07]} Kf7 {[%emt 0:00:23]} 34. Rf1+ {[%emt 0:00:19]} 1-0

[Event "FIDE WYCC Girls U14 2023"]
[Site "Montesilvano"]
[Date "2023.11.21"]
[Round "8.27"]
[White "Alemanova, Yasmina"]
[Black "Maklakova, Naomi"]
[Result "1-0"]
[ECO "D02"]
[WhiteElo "1570"]
[BlackElo "1873"]
[Annotator "NA RC"]
[PlyCount "79"]
[EventDate "2023.11.13"]
[EventType "swiss"]
[EventCountry "ITA"]
[SourceTitle "playchess.com"]
[Source "ChessBase"]
[SourceQuality "1"]
[TimeControl "40/5400+30:1800+30"]

1. d4 d5 {[%emt 0:00:14]} 2. Bf4 {[%emt 0:00:15]} Nf6 {[%emt 0:00:13]} 3. Nf3 {[%emt 0:00:03]} e6 {[%emt 0:00:21]} 4. e3 {[%emt 0:00:04]} Bd6 {[%emt 0:00:32]} 5. Bg3 {[%emt 0:00:06]} c5 {[%emt 0:00:11]} 6. c3 {[%emt 0:00:02]} Qc7 {[%emt 0:00:24]} 7. Bd3 {[%emt 0:00:34]} Nbd7 {[%emt 0:00:33]} 8. Nbd2 {[%emt 0:00:24]} O-O {[%emt 0:00:21]} 9. e4 {[%emt 0:00:56]} dxe4 {[%emt 0:00:12]} 10. Nxe4 {[%emt 0:00:03]} Nxe4 {[%emt 0:00:32]} 11. Bxe4 {[%emt 0:00:12]} cxd4 {[%emt 0:01:21]} 12. Nxd4 {[%emt 0:00:44]} Bxg3 {[%emt 0:05:03]} 13. hxg3 {[%emt 0:01:23]} h6 {[%emt 0:00:13]} 14. Qe2 {[%emt 0:03:00]} Nf6 {[%emt 0:01:06]} 15. Bc2 {[%emt 0:00:09]} e5 {[%emt 0:01:06]} 16. Nb5 {[%emt 0:01:30]} Qc5 {[%emt 0:01:23]} 17. O-O-O {[%emt 0:01:53]} Be6 {[%emt 0:02:09]} 18. Nd6 {[%emt 0:06:39]} Bxa2 {[%emt 0:05:19]} 19. Ne4 {[%emt 0:05:06]} Nxe4 {[%emt 0:00:26]} 20. Qxe4 {[%emt 0:00:05]} f5 {[%emt 0:00:08]} 21. Qxb7 {[%emt 0:00:47]} Rab8 {[%emt 0:00:50]} 22. Qa6 {[%emt 0:00:09]} Bc4 {[%emt 0:00:34]} 23. Qd6 {[%emt 0:01:12]} Qb5 {[%emt 0:01:23]} 24. Qa3 {[%emt 0:00:23]} Rf6 {[%emt 0:02:52]} 25. Ba4 {[%emt 0:01:43]} Qb6 {[%emt 0:01:01]} 26. Rd2 {[%emt 0:00:51]} e4 {[%emt 0:01:27]} 27. Rd4 {[%emt 0:00:38]} Bf7 {[%emt 0:02:41]} 28. Rhd1 {[%emt 0:01:13]} a5 {[%emt 0:04:31]} 29. R1d2 {[%emt 0:01:47]} Kh7 {[%emt 0:02:36]} 30. Rd6 {[%emt 0:01:49]} Rxd6 {[%emt 0:00:10]} 31. Qxd6 {[%emt 0:00:05]} Qa7 {[%emt 0:07:41]} 32. Qe5 {[%emt 0:04:11]} Rb7 {[%emt 0:04:11]} 33. Qxf5+ {[%emt 0:01:57]} Bg6 {[%emt 0:00:06]} 34. Qc8 {[%emt 0:03:02]} Rc7 {[%emt 0:02:38]} 35. Qd8 {[%emt 0:02:24]} Re7 {[%emt 0:04:26]} 36. Bb3 {[%emt 0:00:12]} Re8 {[%emt 0:01:52]} 37. Qd4 {[%emt 0:14:31]} Qa6 {[%emt 0:02:33]} 38. Bc4 {[%emt 0:01:33]} Qc6 {[%emt 0:01:11]} 39. g4 {[%emt 0:03:37]} Qa4 {[%emt 0:01:46]} 40. Bg8+ {[%emt 0:00:00]} 1-0

[Event "FIDE WYCC Girls U14 2023"]
[Site "Montesilvano"]
[Date "2023.11.21"]
[Round "8.28"]
[White "Zhang, Michelle"]
[Black "Balazs, Szabina Zoe"]
[Result "1-0"]
[ECO "B92"]
[WhiteElo "1833"]
[BlackElo "1552"]
[Annotator "NA RC"]
[PlyCount "71"]
[EventDate "2023.11.13"]
[EventType "swiss"]
[EventCountry "ITA"]
[SourceTitle "playchess.com"]
[Source "ChessBase"]
[SourceQuality "1"]
[TimeControl "40/5400+30:1800+30"]

1. e4 {[%emt 0:00:10]} c5 {[%emt 0:00:10]} 2. Nf3 {[%emt 0:00:26]} d6 {[%emt 0:00:19]} 3. d4 {[%emt 0:00:25]} cxd4 {[%emt 0:00:34]} 4. Nxd4 {[%emt 0:00:10]} Nf6 {[%emt 0:00:36]} 5. Nc3 {[%emt 0:00:37]} a6 {[%emt 0:01:31]} 6. Be2 {[%emt 0:01:29]} e5 {[%emt 0:01:12]} 7. Nb3 {[%emt 0:00:20]} Be7 {[%emt 0:01:33]} 8. Be3 {[%emt 0:01:07]} Nc6 {[%emt 0:02:01]} 9. O-O {[%emt 0:01:15]} O-O {[%emt 0:01:43]} 10. f4 {[%emt 0:07:13]} Be6 {[%emt 0:04:23]} 11. f5 {[%emt 0:01:47]} Bc8 {[%emt 0:00:41]} 12. Qe1 {[%emt 0:02:05]} b5 {[%emt 0:01:44]} 13. a3 {[%emt 0:06:09]} b4 {[%emt 0:04:20]} 14. axb4 {[%emt 0:10:40]} Nxb4 {[%emt 0:00:13]} 15. Qd1 {[%emt 0:07:33]} Bb7 {[%emt 0:05:27]} 16. Ra4 {[%emt 0:06:26]} Nc6 {[%emt 0:03:39]} 17. g4 {[%emt 0:04:37]} Ne8 {[%emt 0:03:46]} 18. Qd2 {[%emt 0:04:14]} Nc7 {[%emt 0:05:25]} 19. g5 {[%emt 0:02:29]} Na7 {[%emt 0:14:56]} 20. Na5 {[%emt 0:02:27]} Bc6 {[%emt 0:06:24]} 21. Nxc6 {[%emt 0:02:33]} Nxc6 {[%emt 0:00:08]} 22. Bc4 {[%emt 0:02:57]} Kh8 {[%emt 0:04:14]} 23. Qg2 {[%emt 0:04:30]} Nd4 {[%emt 0:03:41]} 24. Raa1 {[%emt 0:04:42]} Rb8 {[%emt 0:07:13]} 25. g6 {[%emt 0:03:39]} fxg6 {[%emt 0:01:45]} 26. fxg6 {[%emt 0:00:57]} Rxb2 {[%emt 0:02:58]} 27. Qh3 {[%emt 0:03:09]} Bh4 {[%emt 0:04:56]} 28. Rxf8+ {[%emt 0:02:56]} Qxf8 {[%emt 0:00:06]} 29. Bxd4 {[%emt 0:00:29]} Qf6 {[%emt 0:01:21]} 30. Qc8+ {[%emt 0:00:59]} Qd8 {[%emt 0:00:06]} 31. Qxd8+ {[%emt 0:00:15]} Bxd8 {[%emt 0:00:04]} 32. Rf1 {[%emt 0:00:38]} Bf6 {[%emt 0:00:12]} 33. Be3 {[%emt 0:07:01]} Rxc2 {[%emt 0:01:20]} 34. Rb1 {[%emt 0:01:52]} Nb5 {[%emt 0:02:23]} 35. Nxb5 {[%emt 0:00:50]} axb5 {[%emt 0:01:03]} 36. Rxb5 {[%emt 0:00:31]} 1-0

[Event "FIDE WYCC Girls U14 2023"]
[Site "Montesilvano"]
[Date "2023.11.21"]
[Round "8.29"]
[White "Zerarga, Imene"]
[Black "Stankovic, Andrea"]
[Result "1-0"]
[ECO "C02"]
[WhiteElo "1514"]
[BlackElo "1768"]
[Annotator "NA RC"]
[PlyCount "63"]
[EventDate "2023.11.13"]
[EventType "swiss"]
[EventCountry "ITA"]
[SourceTitle "playchess.com"]
[Source "ChessBase"]
[SourceQuality "1"]
[TimeControl "40/5400+30:1800+30"]

1. e4 {[%emt 0:00:03]} e6 {[%emt 0:00:06]} 2. d4 {[%emt 0:00:04]} d5 {[%emt 0:00:04]} 3. e5 {[%emt 0:00:05]} c5 {[%emt 0:00:05]} 4. c3 {[%emt 0:00:04]} Nc6 {[%emt 0:00:07]} 5. Nf3 {[%emt 0:00:05]} Bd7 {[%emt 0:00:27]} 6. a3 {[%emt 0:01:41]} Nge7 {[%emt 0:01:52]} 7. b4 {[%emt 0:01:33]} cxd4 {[%emt 0:00:24]} 8. cxd4 {[%emt 0:00:07]} Nf5 {[%emt 0:00:07]} 9. Bb2 {[%emt 0:00:10]} Rc8 {[%emt 0:00:31]} 10. Nbd2 {[%emt 0:01:18]} Be7 {[%emt 0:01:43]} 11. Nb3 {[%emt 0:00:31]} b6 {[%emt 0:00:23]} 12. Rc1 {[%emt 0:05:34]} O-O {[%emt 0:00:22]} 13. Ba6 {[%emt 0:00:55]} Rc7 {[%emt 0:01:06]} 14. Bd3 {[%emt 0:05:59]} f6 {[%emt 0:06:44]} 15. Bxf5 {[%emt 0:04:42]} exf5 {[%emt 0:00:10]} 16. O-O {[%emt 0:01:05]} f4 {[%emt 0:02:51]} 17. Re1 {[%emt 0:03:42]} fxe5 {[%emt 0:04:54]} 18. dxe5 {[%emt 0:03:43]} Be6 {[%emt 0:01:13]} 19. Nbd4 {[%emt 0:07:25]} Nxd4 {[%emt 0:01:33]} 20. Nxd4 {[%emt 0:01:17]} Rxc1 {[%emt 0:02:12]} 21. Qxc1 {[%emt 0:00:09]} Qd7 {[%emt 0:02:38]} 22. Qc6 {[%emt 0:01:10]} Qxc6 {[%emt 0:04:24]} 23. Nxc6 {[%emt 0:00:07]} Kf7 {[%emt 0:00:35]} 24. Nxa7 {[%emt 0:03:37]} Bd7 {[%emt 0:09:53]} 25. Rc1 {[%emt 0:02:42]} g5 {[%emt 0:10:09]} 26. Rc7 {[%emt 0:02:33]} Ke6 {[%emt 0:07:28]} 27. Nc6 {[%emt 0:05:24]} Bd8 {[%emt 0:00:52]} 28. Nd4+ {[%emt 0:00:12]} Ke7 {[%emt 0:01:05]} 29. Ra7 {[%emt 0:02:02]} Ke8 {[%emt 0:01:04]} 30. e6 {[%emt 0:00:14]} Bc8 {[%emt 0:00:10]} 31. Nb5 {[%emt 0:00:18]} Be7 {[%emt 0:01:06]} 32. Nc7+ {[%emt 0:00:36]} 1-0

[Event "FIDE WYCC Girls U14 2023"]
[Site "Montesilvano"]
[Date "2023.11.21"]
[Round "8.30"]
[White "Zadrapova, Amalie"]
[Black "Poetscher, Katharina"]
[Result "1-0"]
[ECO "B28"]
[WhiteElo "1753"]
[BlackElo "1345"]
[Annotator "NA RC"]
[PlyCount "43"]
[EventDate "2023.11.13"]
[EventType "swiss"]
[EventCountry "ITA"]
[SourceTitle "playchess.com"]
[Source "ChessBase"]
[SourceQuality "1"]
[TimeControl "40/5400+30:1800+30"]

1. e4 {[%emt 0:00:02]} c5 {[%emt 0:00:04]} 2. Nf3 {[%emt 0:00:06]} a6 {[%emt 0:00:03]} 3. c3 {[%emt 0:00:07]} d5 {[%emt 0:00:10]} 4. exd5 {[%emt 0:00:09]} Qxd5 {[%emt 0:00:06]} 5. d4 {[%emt 0:00:33]} Nf6 {[%emt 0:00:16]} 6. Nbd2 {[%emt 0:03:00]} Nc6 {[%emt 0:03:12]} 7. dxc5 {[%emt 0:03:26]} e5 {[%emt 0:06:08]} 8. b4 {[%emt 0:03:29]} Bg4 {[%emt 0:02:36]} 9. Bc4 {[%emt 0:09:42]} Qd7 {[%emt 0:01:02]} 10. Qb3 {[%emt 0:03:48]} Be7 {[%emt 0:02:03]} 11. Bxf7+ {[%emt 0:02:14]} Kf8 {[%emt 0:02:35]} 12. O-O {[%emt 0:05:14]} Bxc5 {[%emt 0:02:48]} 13. Ng5 {[%emt 0:01:53]} Bb6 {[%emt 0:03:45]} 14. h3 {[%emt 0:10:20]} Be2 {[%emt 0:04:10]} 15. Re1 {[%emt 0:01:56]} Bd3 {[%emt 0:01:37]} 16. Be6 {[%emt 0:01:50]} Qc7 {[%emt 0:03:50]} 17. Ba3 {[%emt 0:10:21]} Nd8 {[%emt 0:08:59]} 18. c4 {[%emt 0:05:43]} e4 {[%emt 0:02:34]} 19. b5+ {[%emt 0:04:16]} Ke8 {[%emt 0:01:17]} 20. Bf5 {[%emt 0:03:31]} Qf4 {[%emt 0:11:25]} 21. Ngxe4 {[%emt 0:01:18]} Bxe4 {[%emt 0:02:57]} 22. Nxe4 {[%emt 0:00:24]} 1-0

[Event "FIDE WYCC Girls U14 2023"]
[Site "Montesilvano"]
[Date "2023.11.21"]
[Round "8.31"]
[White "Andries, Alexia"]
[Black "Hong, Jueun"]
[Result "1/2-1/2"]
[ECO "E43"]
[WhiteElo "1750"]
[BlackElo "1299"]
[Annotator "NA RC"]
[PlyCount "81"]
[EventDate "2023.11.13"]
[EventType "swiss"]
[EventCountry "ITA"]
[SourceTitle "playchess.com"]
[Source "ChessBase"]
[SourceQuality "1"]
[TimeControl "40/5400+30:1800+30"]

1. d4 {[%emt 0:00:02]} Nf6 {[%emt 0:00:05]} 2. c4 {[%emt 0:00:04]} e6 {[%emt 0:00:05]} 3. Nc3 {[%emt 0:00:03]} Bb4 {[%emt 0:00:05]} 4. e3 {[%emt 0:00:03]} b6 {[%emt 0:00:10]} 5. Bd3 {[%emt 0:00:14]} Bb7 {[%emt 0:00:16]} 6. Nf3 {[%emt 0:00:06]} O-O {[%emt 0:00:07]} 7. O-O {[%emt 0:00:04]} Bxc3 {[%emt 0:00:07]} 8. bxc3 {[%emt 0:00:07]} c5 {[%emt 0:01:10]} 9. a4 {[%emt 0:01:35]} Nc6 {[%emt 0:04:24]} 10. e4 {[%emt 0:00:14]} Ne7 {[%emt 0:14:46]} 11. e5 {[%emt 0:01:13]} Ne4 {[%emt 0:03:53]} 12. Qc2 {[%emt 0:00:21]} f5 {[%emt 0:01:01]} 13. a5 {[%emt 0:12:55]} d5 {[%emt 0:10:38]} 14. Ng5 {[%emt 0:08:18]} Nxg5 {[%emt 0:03:54]} 15. Bxg5 {[%emt 0:00:10]} h6 {[%emt 0:01:07]} 16. Bxe7 {[%emt 0:04:01]} Qxe7 {[%emt 0:00:01]} 17. Qb2 {[%emt 0:03:31]} Qc7 {[%emt 0:10:55]} 18. cxd5 {[%emt 0:02:00]} Bxd5 {[%emt 0:02:07]} 19. Rfb1 {[%emt 0:06:53]} Rfb8 {[%emt 0:07:32]} 20. Qa3 {[%emt 0:03:47]} c4 {[%emt 0:04:42]} 21. Be2 {[%emt 0:01:14]} b5 {[%emt 0:06:14]} 22. a6 {[%emt 0:02:58]} Be4 {[%emt 0:03:37]} 23. Rb4 {[%emt 0:00:52]} Rb6 {[%emt 0:02:01]} 24. f3 {[%emt 0:01:50]} Bc2 {[%emt 0:00:55]} 25. Qb2 {[%emt 0:02:37]} Ba4 {[%emt 0:01:20]} 26. Bxc4 {[%emt 0:00:08]} Qc6 {[%emt 0:03:20]} 27. Bb3 {[%emt 0:02:33]} Rxa6 {[%emt 0:02:04]} 28. Bxa4 {[%emt 0:00:19]} bxa4 {[%emt 0:03:09]} 29. Qa3 {[%emt 0:01:30]} Rc8 {[%emt 0:04:29]} 30. Rc1 {[%emt 0:01:55]} Rc7 {[%emt 0:01:47]} 31. c4 {[%emt 0:04:46]} Rb7 {[%emt 0:00:47]} 32. Rcb1 {[%emt 0:02:09]} Rab6 {[%emt 0:01:34]} 33. h4 {[%emt 0:03:58]} Rxb4 {[%emt 0:01:01]} 34. Rxb4 {[%emt 0:00:07]} Rxb4 {[%emt 0:00:01]} 35. Qxb4 {[%emt 0:00:07]} Qa6 {[%emt 0:02:11]} 36. h5 {[%emt 0:01:43]} Qb6 {[%emt 0:04:14]} 37. Qxa4 {[%emt 0:00:09]} Qxd4+ {[%emt 0:00:01]} 38. Kf1 {[%emt 0:00:12]} Qd3+ {[%emt 0:00:32]} 39. Kf2 {[%emt 0:00:15]} Qd2+ {[%emt 0:00:06]} 40. Kf1 {[%emt 0:00:00]} Qd3+ {[%emt 0:00:00]} 41. Kf2 {[%emt 0:00:10]} 1/2-1/2

[Event "FIDE WYCC Girls U14 2023"]
[Site "Montesilvano"]
[Date "2023.11.21"]
[Round "8.32"]
[White "Qi, Jenny"]
[Black "Wang, Yushin Andrea"]
[Result "1-0"]
[ECO "C65"]
[WhiteElo "1737"]
[BlackElo "1186"]
[Annotator "NA RC"]
[PlyCount "141"]
[EventDate "2023.11.13"]
[EventType "swiss"]
[EventCountry "ITA"]
[SourceTitle "playchess.com"]
[Source "ChessBase"]
[SourceQuality "1"]
[TimeControl "40/5400+30:1800+30"]

1. e4 {[%emt 0:00:04]} e5 {[%emt 0:00:05]} 2. Nf3 {[%emt 0:00:08]} Nc6 {[%emt 0:00:07]} 3. Bb5 {[%emt 0:00:08]} Nf6 {[%emt 0:00:19]} 4. d3 {[%emt 0:00:15]} Bc5 {[%emt 0:00:55]} 5. c3 {[%emt 0:02:36]} d5 {[%emt 0:00:53]} 6. Nxe5 {[%emt 0:09:05]} O-O {[%emt 0:06:01]} 7. Nxc6 {[%emt 0:06:54]} bxc6 {[%emt 0:01:20]} 8. Bxc6 {[%emt 0:06:58]} Bxf2+ {[%emt 0:06:32]} 9. Kxf2 {[%emt 0:20:05]} Ng4+ {[%emt 0:03:00]} 10. Ke1 {[%emt 0:05:33]} Qf6 {[%emt 0:02:02]} 11. Qe2 {[%emt 0:04:36]} Qxc6 {[%emt 0:01:28]} 12. h3 {[%emt 0:01:08]} Nf6 {[%emt 0:06:41]} 13. e5 {[%emt 0:08:23]} Re8 {[%emt 0:03:30]} 14. Bf4 {[%emt 0:03:06]} Nd7 {[%emt 0:08:01]} 15. d4 {[%emt 0:01:26]} Ba6 {[%emt 0:03:37]} 16. Qe3 {[%emt 0:04:12]} Qg6 {[%emt 0:05:39]} 17. Rg1 {[%emt 0:03:46]} Qc2 {[%emt 0:05:12]} 18. Qd2 {[%emt 0:01:16]} Qe4+ {[%emt 0:01:56]} 19. Qe3 {[%emt 0:02:35]} Qc2 {[%emt 0:02:48]} 20. Qd2 {[%emt 0:00:20]} Qe4+ {[%emt 0:00:38]} 21. Kd1 {[%emt 0:06:32]} Nb6 {[%emt 0:03:22]} 22. b3 {[%emt 0:04:39]} Rab8 {[%emt 0:02:40]} 23. Qe3 {[%emt 0:00:44]} Qxe3 {[%emt 0:11:31]} 24. Bxe3 {[%emt 0:00:07]} Nd7 {[%emt 0:00:56]} 25. Bf4 {[%emt 0:01:46]} Rbc8 {[%emt 0:02:27]} 26. Nd2 {[%emt 0:00:57]} c5 {[%emt 0:01:48]} 27. Nf3 {[%emt 0:00:46]} cxd4 {[%emt 0:01:25]} 28. cxd4 {[%emt 0:00:16]} f6 {[%emt 0:01:07]} 29. Rc1 {[%emt 0:01:00]} Rxc1+ {[%emt 0:01:31]} 30. Kxc1 {[%emt 0:00:07]} fxe5 {[%emt 0:01:46]} 31. dxe5 {[%emt 0:01:26]} Nc5 {[%emt 0:04:18]} 32. Ne1 {[%emt 0:02:06]} Nd3+ {[%emt 0:00:58]} 33. Nxd3 {[%emt 0:00:14]} Bxd3 {[%emt 0:00:11]} 34. Kd2 {[%emt 0:00:18]} Be4 {[%emt 0:00:57]} 35. Ke3 {[%emt 0:00:26]} Rc8 {[%emt 0:01:18]} 36. Kd4 {[%emt 0:02:03]} Rc2 {[%emt 0:01:33]} 37. e6 {[%emt 0:01:07]} Rxg2 {[%emt 0:04:07]} 38. Rc1 {[%emt 0:00:22]} Rc2 {[%emt 0:00:58]} 39. Rxc2 {[%emt 0:00:12]} Bxc2 {[%emt 0:00:03]} 40. Kxd5 {[%emt 0:00:00]} Kf8 {[%emt 0:00:00]} 41. Kd6 {[%emt 0:00:54]} Ke8 {[%emt 0:00:48]} 42. Be3 {[%emt 0:01:43]} a6 {[%emt 0:02:59]} 43. h4 {[%emt 0:03:16]} g6 {[%emt 0:03:42]} 44. Bc5 {[%emt 0:01:43]} Bb1 {[%emt 0:06:32]} 45. a3 {[%emt 0:00:27]} Bc2 {[%emt 0:00:48]} 46. b4 {[%emt 0:00:25]} Ba4 {[%emt 0:01:27]} 47. Kc7 {[%emt 0:03:48]} Bb5 {[%emt 0:01:48]} 48. Kb6 {[%emt 0:01:11]} Kd8 {[%emt 0:01:15]} 49. e7+ {[%emt 0:02:18]} Kd7 {[%emt 0:01:05]} 50. a4 {[%emt 0:00:51]} Bc4 {[%emt 0:03:31]} 51. b5 {[%emt 0:00:32]} axb5 {[%emt 0:00:36]} 52. axb5 {[%emt 0:05:07]} h6 {[%emt 0:01:19]} 53. Ka5 {[%emt 0:01:02]} g5 {[%emt 0:01:49]} 54. h5 {[%emt 0:01:00]} g4 {[%emt 0:01:48]} 55. b6 {[%emt 0:02:15]} Bd5 {[%emt 0:00:19]} 56. Ka6 {[%emt 0:00:38]} g3 {[%emt 0:01:39]} 57. b7 {[%emt 0:00:09]} Bxb7+ {[%emt 0:00:19]} 58. Kxb7 {[%emt 0:00:04]} g2 {[%emt 0:00:15]} 59. Kb6 {[%emt 0:00:14]} g1=Q {[%emt 0:01:22]} 60. Bxg1 {[%emt 0:00:03]} Kxe7 {[%emt 0:00:07]} 61. Be3 {[%emt 0:00:08]} Kf7 {[%emt 0:00:43]} 62. Bxh6 {[%emt 0:00:08]} Kg8 {[%emt 0:00:21]} 63. Be3 {[%emt 0:00:06]} Kh7 {[%emt 0:00:15]} 64. h6 {[%emt 0:00:03]} Kg6 {[%emt 0:00:12]} 65. Kc6 {[%emt 0:00:05]} Kh7 {[%emt 0:00:08]} 66. Kd6 {[%emt 0:00:04]} Kg6 {[%emt 0:00:09]} 67. Ke6 {[%emt 0:00:02]} Kh7 {[%emt 0:00:10]} 68. Kf6 {[%emt 0:00:07]} Kh8 {[%emt 0:00:37]} 69. Kg6 {[%emt 0:00:06]} Kg8 {[%emt 0:00:04]} 70. h7+ {[%emt 0:00:07]} Kh8 {[%emt 0:00:07]} 71. Bd4# 1-0